fUSD/lending_fUSD_20240220
["ID","MTS","AMOUNT","RATE_DAILY","PERIOD"]
[314578262,1708432250927,-500.0,0.00043942,4]
[314578263,1708432250937,-500.0,0.00043951,4]
[314578264,1708432250947,-400.0,0.0004397,3]
[314578265,1708432250958,-519.0,0.00043979,90]
[314578266,1708432250968,-10330.32269211,0.00043988,35]
[314578267,1708432250978,-8754.9137426,0.0004399,30]
[314578268,1708432250988,-162.38833905,0.00043996,2]
[314578269,1708432250998,-4979.89112243,0.00043996,2]
[314578270,1708432251009,-575.34,0.00043999,15]
[314578271,1708432251019,-575.34,0.00043999,15]
[314578272,1708432251029,-575.34,0.00043999,15]
[314578273,1708432251039,-575.34,0.00043999,15]
[314578274,1708432251050,-575.34,0.00043999,15]
[314578275,1708432251060,-575.34,0.00043999,15]
[314578276,1708432251070,-575.34,0.00043999,15]
[314578277,1708432251080,-575.34,0.00043999,15]
[314578278,1708432251090,-575.34,0.00043999,15]
[314578279,1708432251101,-575.34,0.00043999,15]
[314578280,1708432251111,-100000.0,0.00044,24]
[314578281,1708432251122,-10000.07253352,0.00044,2]
[314578282,1708432251133,-517.1595436,0.00044,2]
[314578283,1708432251143,-4284.16767174,0.00044,4]
[314578284,1708432251154,-17773.28651705,0.00044,8]
[314578285,1708432251165,-35297.04,0.00044,10]
[314578286,1708432251176,-601.7015471,0.00044,7]
[314578287,1708432251187,-500.0,0.00044,4]
[314578288,1708432251198,-200.0,0.00044,20]
[314578289,1708432251208,-150.0,0.00044,19]
[314578290,1708432251219,-1992.717286,0.00044,19]
[314578291,1708432251229,-1992.717286,0.00044,19]
[314578292,1708432251239,-1992.717287,0.00044,19]
[314578293,1708432251250,-1090.9146972,0.0004406,2]
[314578294,1708432251260,-210.0,0.0004409,30]
[314578295,1708432251271,-1555.77325212,0.00044135,2]
[314578296,1708432251281,-731.04574347,0.00044135,2]
[314578297,1708432251292,-215.47788382,0.00044135,2]
[314578298,1708432251303,-194.3271446,0.00044135,2]
[314578299,1708432251314,-932.50312385,0.00044135,2]
[314578300,1708432251325,-545.21294482,0.00044135,2]
[314578301,1708432251337,-2820.83933556,0.00044135,2]
[314578302,1708432251348,-157.0212031,0.00044198,23]
[314578303,1708432251359,-9211.12,0.000442,7]
[314578304,1708432251371,-347.049458,0.00044265,5]
[314578305,1708432251382,-500.0,0.00044292,7]
[314578306,1708432251393,-3619.08,0.000443,7]
[314578307,1708432251404,-519.0,0.00044301,90]
[314578308,1708432251415,-604.0,0.00044308,7]
[314578309,1708432251425,-528.746,0.00044345,2]
[314578310,1708432251435,-1951.0,0.00044345,2]
[314578311,1708432251446,-1256.0,0.00044345,2]
[314578312,1708432251457,-412.6,0.00044384,2]
[314578313,1708432251467,-419.46,0.00044384,2]
[314578314,1708432251477,-412.6,0.00044384,2]
[314578315,1708432251488,-419.46,0.00044384,2]
[314578316,1708432251499,-410.94,0.00044384,2]
[314578317,1708432251510,-419.46,0.00044384,2]
[314578318,1708432251521,-419.46,0.00044384,2]
[314578319,1708432251531,-164.67031385,0.000444,3]
[314578320,1708432251542,-153.49143949,0.000444,116]
[314578321,1708432251552,-551.90689055,0.00044405,11]
[314578322,1708432251562,-150.0,0.00044412,2]
[314578323,1708432251572,-214.0,0.00044447,2]
[314578324,1708432251582,-4140.0,0.00044463,7]
[314578325,1708432251592,-157.0212031,0.00044498,23]
[314578326,1708432251603,-150.0,0.000445,30]
[314578327,1708432251614,-175.0,0.000445,2]
[314578328,1708432251624,-200.0,0.000445,20]
[314578329,1708432251634,-152.005928,0.00044524,30]
[314578330,1708432251644,-683.49331237,0.00044529,5]
[314578331,1708432251661,-379.67,0.00044581,2]
[314578332,1708432251672,-381.13785371,0.00044587,19]
[314578333,1708432251683,-150.0,0.0004461,20]
[314578334,1708432251694,-800.0,0.00044657,2]
[314578335,1708432251704,-205.0,0.00044666,19]
[314578336,1708432251719,-2715.46691493,0.00044697,2]
[314578337,1708432251731,-1409.0,0.000447,4]
[314578338,1708432251743,-3619.08,0.000447,7]
[314578339,1708432251754,-165.960607,0.00044707,30]
[314578340,1708432251765,-150.0,0.00044707,30]
[314578341,1708432251775,-500.0,0.00044749,7]
[314578342,1708432251786,-400.0,0.0004477,3]
[314578343,1708432251797,-157.0212031,0.00044798,23]
[314578344,1708432251808,-3000.0,0.000448,4]
[314578345,1708432251821,-532.48373792,0.0004482,5]
[314578346,1708432251833,-500.0,0.0004483,4]
[314578347,1708432251844,-58000.0,0.0004483,5]
[314578348,1708432251855,-2064.0,0.00044839,30]
[314578349,1708432251866,-1639.74953942,0.00044874,5]
[314578350,1708432251877,-500.0,0.00044888,4]
[314578351,1708432251888,-160.65474114,0.00044899,60]
[314578352,1708432251900,-150.0,0.00044899,60]
[314578353,1708432251910,-200.0,0.000449,19]
[314578354,1708432251921,-1015.80858463,0.000449,10]
[314578355,1708432251932,-2286.72360873,0.000449,120]
[314578356,1708432251942,-9211.12,0.000449,7]
[314578357,1708432251953,-347.0,0.000449,34]
[314578358,1708432251963,-90000.0,0.000449,30]
[314578359,1708432251974,-1000.0,0.00044911,30]
[314578360,1708432251984,-221.0,0.0004495,30]
[314578361,1708432251994,-227.0,0.0004495,30]
[314578362,1708432252005,-210.0,0.0004495,30]
[314578363,1708432252015,-209.0,0.0004495,30]
[314578364,1708432252026,-219.0,0.0004495,30]
[314578365,1708432252036,-214.0,0.0004495,30]
[314578366,1708432252046,-211.0,0.0004495,2]
[314578367,1708432252057,-500.0,0.00044957,30]
[314578368,1708432252067,-500.0,0.00044957,30]
[314578369,1708432252082,-275.0,0.00044957,30]
[314578370,1708432252092,-1009.36487323,0.0004496,4]
[314578371,1708432252103,-400.0,0.0004497,3]
[314578372,1708432252114,-200.0,0.00044987,19]
[314578373,1708432252125,-200.0,0.00044987,24]
[314578374,1708432252136,-247.15154711,0.00044989,5]
[314578375,1708432252147,-100000.0,0.00045,35]
[314578376,1708432252158,-100000.0,0.00045,34]
[314578377,1708432252170,-500.0,0.00045,10]
[314578378,1708432252180,-418.3178089,0.00045,7]
[314578379,1708432252192,-155.66495075,0.00045,30]
[314578380,1708432252202,-259.87039097,0.00045,7]
[314578381,1708432252213,-507.29894782,0.00045,4]
[314578382,1708432252224,-299.99999905,0.00045,46]
[314578383,1708432252235,-3007.11496398,0.00045,4]
[314578384,1708432252246,-363.78,0.00045,14]
[314578385,1708432252257,-1688.0,0.00045,14]
[314578386,1708432252268,-500.0,0.00045,7]
[314578387,1708432252279,-500.0,0.00045,15]
[314578388,1708432252290,-394.0,0.00045,120]
[314578389,1708432252301,-1024.94,0.00045,120]
[314578390,1708432252311,-10045.79831698,0.00045,30]
[314578391,1708432252322,-380.60767944,0.00045,120]
[314578392,1708432252333,-218.38216012,0.00045,4]
[314578393,1708432252345,-966.41090556,0.00045,7]
[314578394,1708432252355,-152.3648682,0.00045,7]
[314578395,1708432252366,-63810.42671941,0.00045,120]
[314578396,1708432252377,-7210.2006106,0.00045,90]
[314578397,1708432252388,-20000.0,0.00045,20]
[314578398,1708432252398,-200.0,0.00045,21]
[314578399,1708432252408,-1737.001711,0.00045,17]
[314578400,1708432252420,-220.0,0.00045,5]
[314578401,1708432252431,-42197.14469106,0.00045004,7]
[314578402,1708432252443,-166.99392,0.00045052,4]
[314578403,1708432252454,-152.005928,0.00045074,30]
[314578404,1708432252465,-166.217599,0.00045074,30]
[314578405,1708432252475,-3619.08,0.000451,7]
[314578406,1708432252486,-232.9686,0.0004514,30]
[314578407,1708432252501,-164.827154,0.00045144,30]
[314578408,1708432252512,-152.460061,0.00045144,30]
[314578409,1708432252523,-178.51,0.00045149,2]
[314578410,1708432252533,-996.52,0.00045185,120]
[314578411,1708432252544,-157.0212031,0.00045198,27]
[314578412,1708432252555,-500.0,0.00045205,7]
[314578413,1708432252567,-166.66666667,0.00045205,60]
[314578414,1708432252578,-152.12,0.00045205,2]
[314578415,1708432252887,-150.0,0.00045205,2]
[314578416,1708432252897,-150.0,0.00045205,2]
[314578417,1708432252907,-150.0,0.00045205,2]
[314578418,1708432252916,-153.25962478,0.00045234,26]
[314578419,1708432252926,-1000.0,0.00045239,30]
[314578420,1708432252935,-1000.0,0.00045239,30]
[314578421,1708432252944,-1000.0,0.00045239,30]
[314578422,1708432252954,-1000.0,0.00045239,30]
[314578423,1708432252963,-1000.0,0.00045239,30]
[314578424,1708432252973,-1000.0,0.00045239,30]
[314578425,1708432252983,-1000.0,0.00045243,30]
[314578426,1708432252992,-1000.0,0.00045243,30]
[314578427,1708432253001,-1000.0,0.00045243,30]
[314578428,1708432253011,-1000.0,0.00045243,30]
[314578429,1708432253020,-1000.0,0.00045243,30]
[314578430,1708432253029,-1000.0,0.00045243,30]
[314578431,1708432253039,-1000.0,0.00045243,30]
[314578432,1708432253048,-347.049458,0.00045265,6]
[314578433,1708432253058,-173.36,0.0004528,2]
[314578434,1708432253067,-347.0,0.000454,35]
[314578435,1708432253076,-474.23350643,0.00045415,60]
[314578436,1708432253085,-381.13785371,0.00045415,20]
[314578437,1708432253095,-150.0,0.00045422,2]
[314578438,1708432253104,-1208.0,0.00045429,30]
[314578439,1708432253113,-165.960607,0.0004544,30]
[314578440,1708432253124,-150.0,0.0004544,30]
[314578441,1708432253133,-800.0,0.00045479,2]
[314578442,1708432253143,-157.0212031,0.00045498,27]
[314578443,1708432253152,-3619.08,0.000455,7]
[314578444,1708432253162,-200.0,0.000455,22]
[314578445,1708432253171,-2000.0,0.000455,2]
[314578446,1708432253180,-221.0,0.000455,6]
[314578447,1708432253190,-3000.0,0.000455,2]
[314578448,1708432253199,-676.41,0.00045538,120]
[314578449,1708432253208,-150.0,0.00045599,5]
[314578450,1708432253227,-150.0,0.00045599,5]
[314578451,1708432253238,-100000.0,0.000456,120]
[314578452,1708432253248,-9211.12,0.000456,7]
[314578453,1708432253257,-152.005928,0.00045624,30]
[314578454,1708432253268,-152.0,0.00045655,5]
[314578455,1708432253278,-500.0,0.00045662,7]
[314578456,1708432253287,-519.0,0.00045671,90]
[314578457,1708432253297,-238.579,0.00045734,2]
[314578458,1708432253308,-337.0,0.00045734,2]
[314578459,1708432253318,-10474.566,0.00045734,2]
[314578460,1708432253327,-157.0212031,0.00045798,27]
[314578461,1708432253337,-1500.0,0.000458,40]
[314578462,1708432253347,-462.04,0.000458,21]
[314578463,1708432253357,-153.68,0.000458,5]
[314578464,1708432253367,-153.68,0.000458,5]
[314578465,1708432253377,-153.68,0.000458,5]
[314578466,1708432253387,-153.68,0.000458,5]
[314578467,1708432253397,-153.68,0.000458,5]
[314578468,1708432253408,-153.68,0.000458,5]
[314578469,1708432253419,-153.68,0.000458,5]
[314578470,1708432253428,-153.68,0.000458,5]
[314578471,1708432253438,-1737.85,0.000458,5]
[314578472,1708432253448,-1737.85,0.000458,5]
[314578473,1708432253458,-1737.85,0.000458,5]
[314578474,1708432253468,-1737.85,0.000458,5]
[314578475,1708432253477,-1737.85,0.000458,5]
[314578476,1708432253487,-1737.85,0.000458,5]
[314578477,1708432253497,-1737.85,0.000458,5]
[314578478,1708432253507,-1737.85,0.000458,5]
[314578479,1708432253517,-1737.85,0.000458,5]
[314578480,1708432253527,-1737.85,0.000458,5]
[314578481,1708432253537,-1737.85,0.000458,5]
[314578482,1708432253547,-1737.85,0.000458,5]
[314578483,1708432253556,-1737.85,0.000458,5]
[314578484,1708432253566,-1737.85,0.000458,5]
[314578485,1708432253576,-1737.85,0.000458,5]
[314578486,1708432253586,-1737.85,0.000458,5]
[314578487,1708432253595,-1737.85,0.000458,5]
[314578488,1708432253605,-1737.85,0.000458,5]
[314578489,1708432253615,-1737.85,0.000458,5]
[314578490,1708432253625,-1737.85,0.000458,5]
[314578491,1708432253635,-919.9557928,0.0004581,7]
[314578492,1708432253645,-1500.0,0.0004584,50]
[314578493,1708432253655,-543.79930967,0.0004588,100]
[314578494,1708432253663,-1387.66,0.0004589,2]
[314578495,1708432253673,-150.0,0.00045899,60]
[314578496,1708432253683,-150.0,0.00045899,60]
[314578497,1708432253693,-200.0,0.000459,20]
[314578498,1708432253703,-3619.08,0.000459,7]
[314578499,1708432253712,-347.0,0.000459,36]
[314578500,1708432253722,-90000.0,0.000459,30]
[314578501,1708432253733,-200.0,0.00045987,80]
[314578502,1708432253744,-100000.0,0.00046,36]
[314578503,1708432253754,-2000.0,0.00046,30]
[314578504,1708432253765,-500.0,0.00046,15]
[314578505,1708432253776,-16172.55350558,0.00046,15]
[314578506,1708432253785,-664.0870023,0.00046,7]
[314578507,1708432253796,-60000.0,0.00046,120]
[314578508,1708432253806,-6862.89552702,0.00046,120]
[314578509,1708432253817,-60669.93838351,0.00046,60]
[314578510,1708432253827,-20000.0,0.00046,20]
[314578511,1708432253837,-200.0,0.00046,22]
[314578512,1708432253847,-155.339249,0.00046,14]
[314578513,1708432253857,-295.067064,0.00046,14]
[314578514,1708432253868,-151.0,0.00046,14]
[314578515,1708432253878,-150.62,0.00046027,2]
[314578516,1708432253888,-150.0,0.00046027,2]
[314578517,1708432253898,-150.0,0.00046027,2]
[314578518,1708432253908,-150.0,0.00046027,2]
[314578519,1708432253918,-150.0,0.00046027,2]
[314578520,1708432253931,-150.0,0.00046027,2]
[314578521,1708432253941,-150.0,0.00046027,2]
[314578522,1708432253951,-150.0,0.00046027,2]
[314578523,1708432253960,-150.0,0.00046027,2]
[314578524,1708432253970,-150.0,0.00046027,2]
[314578525,1708432253980,-150.0,0.00046027,2]
[314578526,1708432253990,-150.0,0.00046027,2]
[314578527,1708432254000,-150.0,0.00046027,2]
[314578528,1708432254010,-150.0,0.00046027,2]
[314578529,1708432254019,-150.0,0.00046027,2]
[314578530,1708432254029,-150.0,0.00046027,2]
[314578531,1708432254039,-150.0,0.00046027,2]
[314578532,1708432254048,-150.0,0.00046027,2]
[314578533,1708432254058,-419.31,0.00046027,2]
[314578534,1708432254067,-2000.0,0.00046054,2]
[314578535,1708432254077,-2000.0,0.00046054,2]
[314578536,1708432254086,-1000.0,0.000461,4]
[314578537,1708432254096,-683.49331237,0.00046108,5]
[314578538,1708432254106,-500.0,0.00046119,7]
[314578539,1708432254115,-152.005928,0.00046173,30]
[314578540,1708432254127,-166.217599,0.00046173,30]
[314578541,1708432254136,-159.15197,0.00046173,30]
[314578542,1708432254146,-159.151968,0.00046173,30]
[314578543,1708432254155,-165.960607,0.00046173,30]
[314578544,1708432254165,-150.0,0.00046173,30]
[314578545,1708432254174,-551.90689055,0.00046182,12]
[314578546,1708432254183,-150.0,0.00046228,6]
[314578547,1708432254193,-381.13785371,0.00046244,21]
[314578548,1708432254202,-10000.0,0.00046261,4]
[314578549,1708432254212,-347.049458,0.00046265,7]
[314578550,1708432254221,-6752.2547,0.000463,120]
[314578551,1708432254231,-9211.12,0.000463,7]
[314578552,1708432254240,-800.0,0.00046301,2]
[314578553,1708432254250,-519.0,0.00046315,90]
[314578554,1708432254259,-5176.45337266,0.00046348,31]
[314578555,1708432254269,-347.0,0.000464,36]
[314578556,1708432254278,-1500.0,0.0004641,55]
[314578557,1708432254288,-150.0,0.00046431,2]
[314578558,1708432254297,-157.0212031,0.00046498,30]
[314578559,1708432254306,-99673.05127726,0.000465,9]
[314578560,1708432254316,-467.0,0.000465,8]
[314578561,1708432254325,-150.0,0.00046548,30]
[314578562,1708432254334,-150.0,0.00046548,30]
[314578563,1708432254345,-161.15961624,0.00046548,30]
[314578564,1708432254355,-150.0,0.00046548,30]
[314578565,1708432254364,-150.0,0.00046548,30]
[314578566,1708432254375,-150.0,0.00046548,30]
[314578567,1708432254384,-150.0,0.00046548,30]
[314578568,1708432254394,-150.0,0.00046548,30]
[314578569,1708432254404,-158.19610383,0.00046548,30]
[314578570,1708432254413,-150.0,0.00046548,30]
[314578571,1708432254423,-151.34106215,0.00046548,30]
[314578572,1708432254432,-150.0,0.00046548,30]
[314578573,1708432254442,-400.0,0.0004657,3]
[314578574,1708432254451,-626.59,0.00046575,2]
[314578575,1708432254465,-626.59,0.00046575,2]
[314578576,1708432254475,-626.59,0.00046575,2]
[314578577,1708432254484,-626.59,0.00046575,2]
[314578578,1708432254494,-626.59,0.00046575,2]
[314578579,1708432254503,-626.59,0.00046575,2]
[314578580,1708432254512,-626.59,0.00046575,2]
[314578581,1708432254521,-626.59,0.00046575,2]
[314578582,1708432254531,-626.59,0.00046575,2]
[314578583,1708432254540,-626.59,0.00046575,2]
[314578584,1708432254549,-626.59,0.00046575,2]
[314578585,1708432254558,-626.59,0.00046575,6]
[314578586,1708432254568,-626.59,0.00046575,6]
[314578587,1708432254577,-626.59,0.00046575,6]
[314578588,1708432254586,-626.59,0.00046575,6]
[314578589,1708432254596,-626.59,0.00046575,6]
[314578590,1708432254605,-626.59,0.00046575,6]
[314578591,1708432254614,-626.59,0.00046575,6]
[314578592,1708432254624,-626.59,0.00046575,6]
[314578593,1708432254633,-626.59,0.00046575,6]
[314578594,1708432254643,-626.59,0.00046575,6]
[314578595,1708432254652,-626.59,0.00046575,6]
[314578596,1708432254661,-626.59,0.00046575,6]
[314578597,1708432254671,-626.70043327,0.00046575,6]
[314578598,1708432254680,-500.0,0.00046575,60]
[314578599,1708432254690,-5000.0,0.00046575,30]
[314578600,1708432254699,-1000.0,0.00046575,30]
[314578601,1708432254710,-150.0,0.00046575,2]
[314578602,1708432254719,-500.0,0.00046575,31]
[314578603,1708432254730,-651.21803772,0.00046575,7]
[314578604,1708432254742,-729.05478112,0.000466,30]
[314578605,1708432254752,-42197.14469106,0.00046602,8]
[314578606,1708432254762,-150.0,0.0004664,30]
[314578607,1708432254772,-1500.0,0.0004669,61]
[314578608,1708432254782,-2181.0,0.000467,115]
[314578609,1708432254792,-150.0,0.00046732,30]
[314578610,1708432254802,-166.66666667,0.0004674,60]
[314578611,1708432254812,-909.28,0.0004675,2]
[314578612,1708432254821,-919.9557928,0.0004681,7]
[314578613,1708432254831,-150.0,0.00046824,30]
[314578614,1708432254841,-379.67,0.00046845,2]
[314578615,1708432254851,-213.03386062,0.00046848,21]
[314578616,1708432254860,-5058.21934737,0.00046849,33]
[314578617,1708432254869,-1000.0,0.00046849,33]
[314578618,1708432254879,-189.667133,0.00046849,14]
[314578619,1708432254888,-151.0,0.00046849,14]
[314578620,1708432254898,-151.0,0.00046849,14]
[314578621,1708432254907,-173.70036,0.00046849,14]
[314578622,1708432254917,-151.0,0.00046849,14]
[314578623,1708432254926,-151.0,0.00046849,14]
[314578624,1708432254936,-151.0,0.00046849,14]
[314578625,1708432254946,-151.0,0.00046849,14]
[314578626,1708432254955,-157.87,0.00046849,2]
[314578627,1708432254965,-205.0,0.00046856,25]
[314578628,1708432254975,-150.0,0.00046857,6]
[314578629,1708432254984,-2715.46691493,0.00046877,2]
[314578630,1708432254993,-5122.48022662,0.0004688,60]
[314578631,1708432255007,-990.51228156,0.00046889,28]
[314578632,1708432255017,-28731.01626,0.00046893,30]
[314578633,1708432255026,-151.0,0.00046893,14]
[314578634,1708432255036,-151.0,0.00046893,14]
[314578635,1708432255046,-152.52557,0.00046893,14]
[314578636,1708432255055,-150.0,0.00046899,60]
[314578637,1708432255065,-4115.94568891,0.000469,21]
[314578638,1708432255075,-200.0,0.000469,22]
[314578639,1708432255085,-556.391474,0.000469,37]
[314578640,1708432255094,-151.0,0.000469,14]
[314578641,1708432255104,-244.853277,0.000469,14]
[314578642,1708432255113,-151.0,0.000469,14]
[314578643,1708432255123,-244.853277,0.000469,14]
[314578644,1708432255132,-151.0,0.000469,14]
[314578645,1708432255142,-151.0,0.000469,14]
[314578646,1708432255151,-151.0,0.000469,14]
[314578647,1708432255160,-150.0,0.00046915,30]
[314578648,1708432255170,-6890.00165564,0.00046923,2]
[314578649,1708432255180,-150.0,0.00046949,30]
[314578650,1708432255190,-195.974158,0.00046986,14]
[314578651,1708432255199,-200.0,0.00046987,81]
[314578652,1708432255208,-3000.0,0.00046999,120]
[314578653,1708432255217,-100000.0,0.00047,37]
[314578654,1708432255227,-155.0,0.00047,4]
[314578655,1708432255236,-800.0,0.00047,7]
[314578656,1708432255246,-2000.0,0.00047,30]
[314578657,1708432255255,-196.37772687,0.00047,9]
[314578658,1708432255264,-2000.0,0.00047,30]
[314578659,1708432255273,-10102.90929516,0.00047,30]
[314578660,1708432255283,-464.49228744,0.00047,35]
[314578661,1708432255293,-300.0,0.00047,47]
[314578662,1708432255302,-9211.12,0.00047,7]
[314578663,1708432255312,-20000.0,0.00047,20]
[314578664,1708432255321,-203.0,0.00047,90]
[314578665,1708432255331,-151.0,0.00047,14]
[314578666,1708432255340,-171.612614,0.00047,14]
[314578667,1708432255350,-1304.667774,0.00047,14]
[314578668,1708432255359,-151.0,0.00047,14]
[314578669,1708432255368,-200.946732,0.00047,14]
[314578670,1708432255378,-1304.667774,0.00047,14]
[314578671,1708432255388,-156.21775,0.00047,14]
[314578672,1708432255397,-151.0,0.00047,14]
[314578673,1708432255407,-151.0,0.00047,14]
[314578674,1708432255416,-210.134181,0.00047,14]
[314578675,1708432255426,-151.0,0.00047,14]
[314578676,1708432255436,-196.371553,0.00047,14]
[314578677,1708432255445,-196.371553,0.00047,14]
[314578678,1708432255454,-150.0,0.00047007,30]
[314578679,1708432255464,-400.0,0.0004707,3]
[314578680,1708432255473,-381.13785371,0.00047072,22]
[314578681,1708432255483,-2064.0,0.00047081,30]
[314578682,1708432255493,-150.0,0.00047099,30]
[314578683,1708432255502,-500.0,0.000471,4]
[314578684,1708432255512,-7454.318404,0.000471,2]
[314578685,1708432255522,-321.292453,0.000471,2]
[314578686,1708432255531,-1000.0,0.00047117,30]
[314578687,1708432255540,-1000.0,0.00047117,30]
[314578688,1708432255550,-1000.0,0.00047121,30]
[314578689,1708432255559,-1000.0,0.00047121,30]
[314578690,1708432255568,-1000.0,0.00047121,30]
[314578691,1708432255578,-1000.0,0.00047121,30]
[314578692,1708432255587,-1000.0,0.00047121,30]
[314578693,1708432255596,-1000.0,0.00047121,30]
[314578694,1708432255606,-176.453921,0.00047121,14]
[314578695,1708432255615,-151.0,0.00047121,14]
[314578696,1708432255625,-1000.0,0.00047121,30]
[314578697,1708432255634,-800.0,0.00047123,2]
[314578698,1708432255643,-1000.0,0.00047123,36]
[314578699,1708432255653,-5126.12906709,0.0004718,23]
[314578700,1708432255663,-1000.0,0.00047183,30]
[314578701,1708432255673,-150.0,0.00047191,30]
[314578702,1708432255685,-1500.0,0.0004726,65]
[314578703,1708432255694,-300.0,0.0004726,2]
[314578704,1708432255706,-347.049458,0.00047265,8]
[314578705,1708432255714,-150.0,0.00047283,30]
[314578706,1708432255723,-1951.0,0.00047345,2]
[314578707,1708432255734,-150.0,0.0004735,30]
[314578708,1708432255744,-519.0,0.00047362,90]
[314578709,1708432255754,-400.0,0.0004737,3]
[314578710,1708432255763,-150.0,0.00047375,30]
[314578711,1708432255773,-1000.0,0.00047397,39]
[314578712,1708432255784,-1500.0,0.000474,70]
[314578713,1708432255793,-150.0,0.0004743,30]
[314578714,1708432255803,-150.0,0.0004743,30]
[314578715,1708432255813,-150.0,0.0004744,2]
[314578716,1708432255823,-4156.02,0.00047456,30]
[314578717,1708432255833,-4156.02,0.00047456,30]
[314578718,1708432255842,-4156.02,0.00047456,30]
[314578719,1708432255851,-4156.02,0.00047456,30]
[314578720,1708432255861,-151.0,0.00047456,7]
[314578721,1708432255870,-151.0,0.00047456,14]
[314578722,1708432255880,-151.0,0.00047456,14]
[314578723,1708432255890,-192.603058,0.00047456,14]
[314578724,1708432255899,-152.361217,0.00047456,14]
[314578725,1708432255909,-1605.35285701,0.00047457,30]
[314578726,1708432255918,-150.0,0.00047467,30]
[314578727,1708432255928,-150.0,0.00047486,7]
[314578728,1708432255938,-151.0212031,0.00047498,34]
[314578729,1708432255948,-3800.0,0.000475,90]
[314578730,1708432255958,-498.41059002,0.000475,30]
[314578731,1708432255968,-150.0,0.00047559,30]
[314578732,1708432255978,-1165.17,0.00047572,15]
[314578733,1708432255987,-150.0,0.0004765,30]
[314578734,1708432255996,-666.0,0.00047671,2]
[314578735,1708432256006,-666.0,0.00047671,2]
[314578736,1708432256015,-666.0,0.00047671,2]
[314578737,1708432256024,-666.0,0.00047671,2]
[314578738,1708432256034,-666.0,0.00047671,2]
[314578739,1708432256043,-275.59883329,0.00047671,2]
[314578740,1708432256053,-1000.0,0.00047671,42]
[314578741,1708432256062,-1500.0,0.0004768,75]
[314578742,1708432256072,-683.49331237,0.00047687,5]
[314578743,1708432256081,-171.18,0.000477,120]
[314578744,1708432256090,-4156.02,0.00047729,30]
[314578745,1708432256102,-4156.02,0.00047729,30]
[314578746,1708432256111,-150.0,0.00047742,30]
[314578747,1708432256288,-150.0,0.00047751,30]
[314578748,1708432256298,-151.0,0.00047751,14]
[314578749,1708432256308,-151.0,0.00047751,14]
[314578750,1708432256317,-382.258063,0.00047751,14]
[314578751,1708432256327,-154.266885,0.00047751,14]
[314578752,1708432256336,-151.0,0.00047751,14]
[314578753,1708432256345,-382.258063,0.00047751,14]
[314578754,1708432256355,-172.0,0.00047777,120]
[314578755,1708432256364,-15856.8070176,0.000478,30]
[314578756,1708432256374,-290.06454488,0.000478,7]
[314578757,1708432256383,-153.68,0.000478,5]
[314578758,1708432256393,-153.68,0.000478,5]
[314578759,1708432256402,-153.68,0.000478,5]
[314578760,1708432256412,-153.68,0.000478,5]
[314578761,1708432256421,-1737.85,0.000478,5]